Cogmind - Beta 9.6 @@@ ROGUE MODE // 2020.07.12 @ 08:20:43 Player: Lyft Result: Destroyed by D-53 Grenadier with Mini Grenade Launcher Performance ------------- Evolutions (0) 0 Regions Visited (2) 400 Robots Destroyed (21) 105 Value Destroyed (324) 324 Prototype IDs (0) 0 Alien Tech Used (0) 0 Bonus (0) 0 TOTAL SCORE: 829 Bonus ------- None Cogmind --------- Core Integrity 0/250 Matter 296/300 Energy 74/100 System Corruption 2% Temperature Cool (35) Movement Rolling (110) Ox3 Location -10/Mines Parts ------- > --- POWER (1) -------- (None) > --- PROPULSION (2) --- Wheel > --- UTILITY (2) ------ Large Storage Unit Large Storage Unit > --- WEAPON (2) ------- Mining Laser > --- INVENTORY (16) --- Light Nuclear Core Wheel Compact Wheel Heat Sink High-capacity Storage Unit High-capacity Storage Unit High-capacity Storage Unit High-capacity Storage Unit Large Matter Pod (75) EM Pulse Gun Grenade Launcher Grenade Launcher Peak State ------------ > --- POWER ------------ Ion Engine > --- PROPULSION ------- Light Treads Wheel > --- UTILITY ---------- Small Storage Unit High-capacity Storage Unit > --- WEAPON ----------- EM Pulse Gun Light Assault Rifle > --- INVENTORY -------- Ion Engine Light Treads Wheel Compact Wheel High-capacity Storage Unit High-capacity Storage Unit Large Matter Pod EM Pulse Gun EM Pulse Gun EM Pulse Gun [Rating: 8] Favorites ----------- Power Light Ion Engine Engine Light Ion Engine Propulsion Light Treads Treads Light Treads Leg Aluminum Leg Wheel Wheel Flight Unit Flight Unit Utility Large Storage Unit Storage Large Storage Unit Weapon Light Assault Rifle Energy Gun EM Pulse Gun Ballistic Gun Light Assault Rifle Special Weapon Mining Laser Build | -11 -10 -10 ------- Run | Scr Mat Min Slots Evolved . | . . . Power . | . . . Propulsion . | . . . Utility . | . . . Weapon . | . . . Parts Attached 30 | 4 21 5 Power 3 | . 2 1 Engine 3 | . 2 1 Core . | . . . Reactor . | . . . Propulsion 12 | 2 8 2 Treads 6 | 1 4 1 Leg . | . . . Wheel 5 | 1 3 1 Hover . | . . . Flight 1 | . 1 . Utility 8 | 1 7 . Device . | . . . Storage 8 | 1 7 . Processor . | . . . Hackware . | . . . Protection . | . . . Artifact . | . . . Weapon 7 | 1 4 2 Energy Gun 3 | . 2 1 Energy Cannon . | . . . Ballistic Gun 3 | 1 2 . Ballistic Cannon . | . . . Launcher . | . . . Special Weapon 1 | . . 1 Impact Weapon . | . . . Slashing Weapon . | . . . Piercing Weapon . | . . . Special Melee Weapon . | . . . Unidentified Prototypes . | . . . Parts Lost 8 | . 1 7 Power 2 | . . 2 Propulsion 2 | . . 2 Utility . | . . . Weapon 4 | . 1 3 Highest Loss Streak 4 | . 1 4 Average Slot Usage (%) 98 | . 98 98 Engine 14 | . 14 14 Treads 21 | . 21 20 Wheel 6 | . 6 8 Storage 27 | . 27 28 Energy Gun 13 | . 13 12 Ballistic Gun 13 | . 13 14 Naked Turns . | . . . Heaviest Build 72 | 16 72 38 Greatest Support 40 | 10 40 40 Greatest Overweight (x) 7 | 1 7 3 Average Overweight (x) 2 | 1 2 1 Largest Inventory Capacity 20 | 8 20 16 Average Capacity 14 | 6 14 16 Most Carried 16 | 6 16 16 Average Carried 11 | 4 11 14 Final Capacity 16 | 8 16 16 Final Carried 16 | 6 16 12 Class Distribution -------------------- 72% | Mutant 27% | Hauler-Mutant Dominant Class ---------------- Mutant | -10/Materials Mutant | -10/Mines Resources | -11 -10 -10 ----------- Run | Scr Mat Min Matter Collected 597 | 233 177 187 Remotely . | . . . Salvage Created 625 | 53 439 133 Parts 43 | 3 34 6 Haulers Intercepted . | . . . Recyclers Shooed 4 | 1 2 1 Parts Field Recycled . | . . . Retrieved Matter . | . . . Parts Self-Destructed . | . . . Prevented . | . . . Kills | -11 -10 -10 ------- Run | Scr Mat Min Combat Hostiles Destroyed 14 | . 11 3 Guns 14 | . 11 3 Classes Destroyed 6 | 1 5 . Worker 2 | . 2 . Builder 1 | . 1 . Recycler 2 | 1 1 . Watcher 2 | . 2 . Swarmer 9 | . 9 . Grunt 5 | . 2 3 Best Kill Streak 5 | 1 5 2 Combat Bots Only 3 | . 3 2 Max Kills in Single Turn 2 | 1 2 1 Gunslinging 1 | . 1 . Exploded . | . . . Melee . | . . . Uniques/NPCs Destroyed . | . . . Combat | -11 -10 -10 -------- Run | Scr Mat Min Damage Taken 1220 | . 475 745 Core 255 | . 57 198 Absorbed by Shields . | . . . Core Remaining (%) 100 | 100 . . Volleys Fired 66 | 2 44 20 Largest 2 | 2 2 2 Hottest 120 | 60 60 120 Shots Fired 120 | 4 82 34 Gun 119 | 4 82 33 Cannon . | . . . Launcher . | . . . Special 1 | . . 1 Kinetic 66 | 2 44 20 Thermal 1 | . . 1 Explosive . | . . . Electromagnetic 53 | 2 38 13 Robot Hit Streak 16 | 2 16 11 Robot Miss Streak 8 | 1 8 2 Penetration Max . | . . . Secondary Targets 3 | . 3 . Max Gunslinging Chain 1 | . 1 . Shots Hit Robots 73 | 2 46 25 Core Hits 34 | 1 21 12 Critical Hits 1 | . 1 . Critical Kills 1 | . 1 . Critical Parts Destroyed . | . . . Melee Attacks . | . . . Impact . | . . . Slashing . | . . . Piercing . | . . . Sneak Attacks . | . . . Combat Hostiles . | . . . Follow-up Attacks . | . . . Damage Inflicted 840 | 22 507 311 Guns 761 | 22 480 259 Cannons . | . . . Explosions 79 | . 27 52 Melee . | . . . Ramming . | . . . Kinetic 266 | 7 155 104 Thermal 79 | . 27 52 Explosive . | . . . Electromagnetic 495 | 15 325 155 Impact . | . . . Slashing . | . . . Piercing . | . . . Highest Corruption 2 | . . 2 Average Corruption 2 | . . 2 Corruption Purged . | . . . Effects 1 | . . 1 Data Loss (minor) 1 | . . 1 Overload Shots . | . . . Overflow Damage . | . . . Projectiles . | . . . Explosions . | . . . Melee . | . . . Knockbacks . | . . . Impact . | . . . Kinetic . | . . . Secondary . | . . . Self-Inflicted Damage 80 | . 40 40 Shots 2 | . 1 1 Rammed . | . . . Targets Rammed . | . . . Kicked . | . . . Crushed . | . . . Highest Temperature 109 | 20 74 109 Average Temperature 36 | 15 27 55 Received Heat Transfer 280 | . 66 214 Siege Activations . | . . . Robots Corrupted . | . . . Combat Hostiles . | . . . Parts Fried 1 | . 1 . Impact Corruptions . | . . . Robots Melted . | . . . Combat Hostiles . | . . . Parts Melted . | . . . Heat Transferred 150 | . 50 100 Parts Sabotaged . | . . . Parts Stolen . | . . . Parts Stripped . | . . . Power Chain Reactions 2 | . 1 1 Missiles Intercepted . | . . . Alert | -11 -10 -10 ------- Run | Scr Mat Min Peak Influence 242 | 5 242 85 Average Influence 93 | 2 100 74 Maximum Alert Level 1 | . 1 . Low Security (%) 95 | 100 94 100 Level 1 4 | . 5 . Level 2 . | . . . Level 3 . | . . . Level 4 . | . . . Level 5 . | . . . High Security . | . . . Max Security . | . . . Squads Dispatched 1 | . 1 . Investigation 1 | . 1 . Extermination . | . . . Reinforcement . | . . . Assault . | . . . Garrison . | . . . Intercept . | . . . Construction Impeded . | . . . Haulers Reinforced . | . . . Stealth | -11 -10 -10 --------- Run | Scr Mat Min Distress Signals 3 | . 3 . Communications Jammed . | . . . Distress Signals . | . . . Times Spotted 37 | . 15 22 Peak Tracking Total 22 | . 4 22 Tactical Retreats 2 | . . 2 Traps | -11 -10 -10 ------- Run | Scr Mat Min Traps Triggered . | . . . Indirectly . | . . . Trap Hack Attempts . | . . . Triggered . | . . . Disarmed . | . . . Reprogrammed . | . . . Reused . | . . . Traps Extracted . | . . . Installed . | . . . Triggered 1 | . . 1 Machines | -11 -10 -10 ---------- Run | Scr Mat Min Machines Disabled . | . . . Max in Single Turn . | . . . Machines Sabotaged . | . . . Garrisons Compromised . | . . . Overloaded Fab Kills . | . . . Fab Network Shutdowns . | . . . Hacking | -11 -10 -10 --------- Run | Scr Mat Min Machines Accessed 5 | . 5 . Terminals 3 | . 3 . Fabricators . | . . . Repair Stations 1 | . 1 . Recycling Units 1 | . 1 . Scanalyzers . | . . . Garrison Access . | . . . Total Hacks 17 | . 17 . Successful 11 | . 11 . Failed 5 | . 5 . Catastrophic . | . . . Database Lockouts 1 | . 1 . Manual 15 | . 15 . Terminals 11 | . 11 . Fabricators . | . . . Repair Stations 4 | . 4 . Recycling Units 2 | . 2 . Scanalyzers . | . . . Garrison Access . | . . . Terminal Hacks 3 | . 3 . Robot Analysis 1 | . 1 . Locate Traps 2 | . 2 . Fabricator Hacks . | . . . Repair Station Hacks 2 | . 2 . Scan Component 1 | . 1 . Repair 1 | . 1 . Recycling Unit Hacks . | . . . Scanalyzer . | . . . Garrison Access Hacks . | . . . Unauthorized Hacks 6 | . 6 . Terminals 4 | . 4 . Botnet 2 | . 2 . Operators 2 | . 2 . Fabricators . | . . . Repair Stations 1 | . 1 . Mechanics 1 | . 1 . Recycling Units 1 | . 1 . Recyclers 1 | . 1 . Scanalyzers . | . . . Garrison Access . | . . . Data Cores Recovered . | . . . Used . | . . . Hacking Detections 4 | . 4 . Full Trace Events . | . . . Feedback Events . | . . . Feedback Blocked . | . . . Robot Schematics Acquired . | . . . Robots Built . | . . . Matter . | . . . Time . | . . . Total Robot Build Rating . | . . . Part Schematics Acquired . | . . . Parts Built . | . . . Matter . | . . . Time . | . . . Total Part Build Rating . | . . . Parts Repaired 1 | . 1 . Time 26 | . 26 . Parts Recycled . | . . . Recycled Matter . | . . . Retrieved Matter . | . . . Retrieved Components . | . . . Parts Scanalyzed . | . . . Part Schematics Acquired . | . . . Parts Damaged . | . . . Bothacking | -11 -10 -10 ------------ Run | Scr Mat Min Used RIF Installer . | . . . Robots Hacked . | . . . Non-combat . | . . . Combat . | . . . Robot Hacks Applied . | . . . Relay Couplers Released . | . . . Robots Rewired . | . . . Allies Hacked . | . . . Hacks Repelled . | . . . Allies | -11 -10 -10 -------- Run | Scr Mat Min Total Allies . | . . . Largest Group . | . . . Highest-Rated Group . | . . . Highest-Rated Ally . | . . . Total Orders . | . . . Ally Attacks . | . . . Total Damage . | . . . Kills . | . . . Allies Corrupted . | . . . Allies Melted . | . . . Intel | -11 -10 -10 ------- Run | Scr Mat Min Robot Analysis Total 1 | . 1 . Derelict Logs Recovered . | . . . Drone Launches . | . . . Drone Recoveries . | . . . Exploration | -11 -10 -10 ------------- Run | Scr Mat Min Turns Passed 1098 | 23 862 213 Spaces Moved 547 | 10 425 112 Core . | . . . Treads 249 | . 202 47 Legs . | . . . Wheels 298 | 10 223 65 Hover . | . . . Flight . | . . . Fastest Speed 90 | 90 90 110 Average Speed 140 | 90 142 133 Slowest Speed 180 | 90 180 180 Overloaded Moves . | . . . Propulsion Burnouts . | . . . Robots Hopped . | . . . Cave-ins Triggered . | . . . Exploration Rate (%) 29 | 3 64 20 Regions Visited 2 Branch Regions 1 Pre-discovered Areas . | . . . Known Exits Taken . | . . . Unknown Exits Taken 2 | 1 1 . Scrap Searched 1 | . . 1 Spaces Dug . | . . . Terrain Destroyed 10 | . 6 4 Melee . | . . . Projectile 1 | . . 1 AOE 9 | . 6 3 Actions | -11 -10 -10 --------- Run | Scr Mat Min Total 768 | 20 603 145 Wait 89 | . 85 4 Move 545 | 9 424 112 Hop . | . . . Pick Up 24 | 3 19 2 Fast Attach 3 | . 3 . Attach 10 | 3 3 4 Detach . | . . . Swap 17 | 1 15 1 Drop 14 | 2 10 2 Fire 66 | 2 44 20 Melee . | . . . Ram . | . . . Kick . | . . . Crush . | . . . Escape Stasis . | . . . Rewire . | . . . Trap . | . . . Miscellaneous . | . . . Route ------- -11/Scrapyard -10/Materials (discovered 4 exits: [*Mat x2] / [*Min x2]) -10/Mines (discovered 1 exit: [*Mat]) History --------- Turn | Location | Event 6 | -11/Scrapyard | Discovered new exit (range 2) 24 | -11/Scrapyard | Entered Materials 167 | -10/Materials | Discovered new exit (range 9) 293 | -10/Materials | Discovered new exit (range 8) 527 | -10/Materials | Discovered new exit (range 5) 612 | -10/Materials | Central database locked down 808 | -10/Materials | Discovered new exit (range 16) 856 | -10/Materials | Repaired Lgt. Treads 886 | -10/Materials | Entered Mines 907 | -10/Mines | Build established: Mutant 954 | -10/Mines | Discovered new exit (range 6) 957 | -10/Mines | Core integrity fell below 50% 1015 | -10/Mines | Lost 3 parts (1p1n1w) 1075 | -10/Mines | Assembled infested the area 1099 | -10/Mines | Destroyed by D-53 Grenadier with Mini Grenade Launcher Last Messages --------------- 00986_ G-34 Mercenary misfires. 00988_ G-34 Mercenary destroyed. 00990_ Acquired 39 matter. 00992_ Acquired 25 matter. 01004_ Acquired Sml. Laser. 01006_ Dropped Sml. Laser. 01075_ ALERT: Infestation in the mines, dispatching Demolisher response squad. [Achievement: Hunted] 01091_ EM Pulse Gun destroyed. 01093_ C-30 ARC bursts open, deploying its payload. 01093_ D-53 Grenadier unfolds itself. 01095_ Lgt. Ion Engine destroyed. 01095_ System corrupted by crushing effect (+2). 01095_ Knocked back. 01098_ System corrupted: Component data lost. 01098_ Lgt. Treads destroyed. 01098_ Lgt. Assault Rifle destroyed. 01099_ as-81146 destroyed. 01099_ R-06 Scavenger destroyed. Map ----- +----------------------------------------------------+ | ?????????????????????????????????????????????????? | | ?????????????????????????????????????????????????? | | ?????????????????????????????????????????????????? | | ?????????????????????????????????????????????????? | | ?????????????????????????????????????????????????? | | ?????????????????????????????????????????????????? | | ?????????????????????????????????????????????????? | | ?????????????????????????????????????????????????? | | ?????????????????????????????????????????????????? | | ?????????????????????????????????????????????????? | | ?????????????????????????????????????????????????? | | ?????????????????????????????????????????????????? | | ???????? ???????????????????????????????????????? | | ???????? ???????????????????????????????????????? | | ???????? ????########???????????????????????????? | | ???????? ????# #???????????????????????????? | | ???????? ????# #???????????????????????????? | | ???????# ????# """ #???????????????????????????? | | ??????? ????# """ #???????????????????????????? | | #?????? ????# """ #???????????????????????????? | | ##????? ????# #???????????????????????????? | | #????? ????# #???????????????????????????? | | ?????? ????##### ##???????????????????????????? | | ##?????# #????????# ## #####????????????#????????? | | "###???# #?######## # ! a #?????????? ?????????? | | ""##??# #?# d=%d%a@a ####??????# ?????????? | | #### #?# ########!* #aaa #?????? ??????????? | | #?# #??????## # #####a#????? #??????????? | | #### #?# #???????#?##????# #????? #??????????? | | ##?# #?# #???????????????# #???? #??????????? | | ### #?# #???????????????# ##### ## ##?????? | | ## #?# #???????????????# #?????? | | ### ## ### ####????????????####### | | ??## ## ## #??????????????????? | | ???## # ## #???????????????????? | | ????# ! [ #???????????????????? | | ????## *! = #????????????????????? ? | | ?????# !## < #????????????????????? ? | | ????# ## #?????????????????????? #? | | ????# ########??????????????????????# #?? | | ????## ##??????????????????????????????# ##?? | | ?????####???????????????????????????????? #??? | | ?????????????????????????????????????????? #??? | | ?????????????????????????????????????????? ????? | | ?????????????????????????????????????????????????? | | ?????????????????????????????????????????????????? | | ?????????????????????????????????????????????????? | | ?????????????????????????????????????????????????? | | ?????????????????????????????????????????????????? | | ?????????????????????????????????????????????????? | +----------------------------------------------------+ Best States ------------- Heat Dissipation 25 Energy Generation 10 Energy Capacity 250 Matter Stores 300 Matter Capacity 450 Sight Range 16 Terrain Scan Density 10 Evasion (%) 42 Recoil Reduction 2 Item Schematics ----------------- None Robot Schematics ------------------ None Fabricated ------------ Nothing Alien Tech Used ----------------- None Achievements -------------- Hunted Challenges ------------ None Game ------ Seed FluxDisruptionMaul Manual? 0 Play Time 00:16:55 Cumulative 8.9 hours Start 2020.07.12 @ 08:06:08 End 2020.07.12 @ 08:20:43 Sessions 1 Manual Loads 0 Difficulty Rogue Special Mode None Game No. 22 Rogue 22 Adventurer 0 Explorer 0 Win Type - Total 0 Types 0/0/0/0/0/0/0 Lore% 19 Gallery% 16 Achievement% 15 Wizard Run 0 Options --------- ASCII 0 Keyboard 0 Movement Mouse Keybinds 0 Fullscreen 1 Font 36/Terminus Map View 76x50 Tactical HUD 1 Map Filters NONE Filters NONE Steam 1 RUN: 69a19b72-01e5-4291-a1e7-5de5b295371c